bitfinex-derivatives/quotes_ETHF0:USTF0_20250209
["timestamp","ask_amount","ask_price","bid_price","bid_amount"]
[1739136522290,3.2078,2624.9,2623.7,14.19864715]
[1739136522483,1.1669,2625.2,2624.7,3.11802089]
[1739136522682,3.812,2625.0,2624.7,6.32582089]
[1739136522887,3.812,2625.0,2624.8,0.05184198]
[1739136523887,3.812,2625.0,2624.7,6.32582089]
[1739136523888,3.812,2625.0,2624.9,0.05184198]
[1739136524691,7.0198,2625.0,2624.6,0.00571941]
[1739136524995,3.812,2624.7,2624.6,0.00571941]
[1739136525888,1.17261941,2625.2,2624.6,0.00571941]
[1739136526096,3.812,2625.0,2624.7,3.11802089]
[1739136526697,3.812,2624.9,2624.6,0.00571941]
[1739136528602,1.17261941,2625.2,2624.6,0.00571941]
[1739136528793,3.812,2624.7,2624.6,0.00571941]
[1739136533097,3.812,2624.7,2624.3,3.2078]
[1739136533297,3.812,2624.5,2624.1,3.11802089]
[1739136533499,3.812,2624.2,2624.1,3.11802089]
[1739136535106,0.6492,2624.6,2624.1,3.11802089]
[1739136535297,3.812,2624.2,2624.1,3.11802089]
[1739136535499,3.812,2624.4,2624.1,3.11802089]
[1739136535802,3.812,2624.3,2624.1,3.11802089]
[1739136536206,3.812,2624.2,2623.9,0.00571941]
[1739136536395,0.597,2624.1,2623.9,0.00571941]
[1739136537199,3.812,2624.0,2623.9,0.00571941]
[1739136538100,0.597,2624.1,2623.9,0.00571941]
[1739136538496,0.5603,2624.6,2623.9,0.00571941]
[1739136538497,0.5603,2624.6,2624.0,3.2078]
[1739136538803,3.812,2624.4,2624.1,3.70872089]
[1739136539103,3.812,2624.4,2624.1,3.11802089]
[1739136540502,3.812,2624.2,2623.9,0.00571941]
[1739136541005,3.812,2624.0,2623.9,0.00571941]
[1739136543509,3.812,2624.0,2623.5,3.11802089]
[1739136543810,3.812,2623.6,2623.5,3.11802089]
[1739136546003,3.812,2623.6,2623.4,3.2078]
[1739136546205,3.812,2623.5,2623.4,3.2078]
[1739136546411,7.0198,2623.5,2623.3,0.00571941]
[1739136546610,4.3848,2623.4,2623.3,0.00571941]
[1739136547110,4.3848,2623.4,2622.9,3.11802089]
[1739136547310,3.812,2623.0,2622.9,3.11802089]
[1739136555825,3.812,2623.0,2622.7,0.59661941]
[1739136556021,3.812,2622.9,2622.7,0.59661941]
[1739136557424,3.812,2622.9,2622.7,0.90349662]
[1739136560723,3.812,2622.9,2622.8,0.05184198]
[1739136566233,3.812,2622.8,2622.0,3.2078]
[1739136566433,3.812,2622.8,2621.5,3.2078]
[1739136566434,3.812,2622.1,2621.5,3.2078]
[1739136566629,3.812,2622.0,2621.5,3.2078]
[1739136566834,3.812,2621.6,2621.5,3.2078]
[1739136567832,3.812,2621.6,2621.4,3.11802089]
[1739136568032,3.812,2621.5,2621.4,3.11802089]
[1739136569239,3.812,2621.5,2621.1,1.715]
[1739136569240,3.812,2621.5,2621.1,4.83302089]
[1739136569431,3.21351941,2621.8,2621.1,4.83302089]
[1739136569432,3.812,2621.4,2621.1,4.83302089]
[1739136570343,3.812,2621.3,2621.1,4.83302089]
[1739136571437,3.812,2621.3,2621.1,5.1424236]
[1739136572739,0.00571941,2621.8,2621.3,0.76284]
[1739136572935,0.00571941,2621.8,2621.7,3.2078]
[1739136573136,0.00571941,2621.8,2621.7,4.4132]
[1739136573335,0.00571941,2621.8,2621.7,5.0145]
[1739136574538,3.2078,2622.7,2621.7,14.13252089]
[1739136574738,3.812,2622.4,2622.3,3.11802089]
[1739136576436,3.812,2622.4,2622.1,0.00571941]
[1739136577451,3.812,2622.4,2622.1,0.30897563]
[1739136580449,3.812,2622.4,2622.3,3.11802089]
[1739136583247,0.5667,2622.5,2622.3,3.11802089]
[1739136583443,3.812,2622.4,2622.3,3.11802089]
[1739136585246,3.812,2622.4,2622.1,0.00571941]
[1739136587049,3.812,2622.3,2622.1,0.00571941]
[1739136588251,0.00571941,2622.6,2622.2,3.2078]
[1739136588451,0.00571941,2622.6,2622.4,3.11802089]
[1739136588651,3.812,2622.5,2622.4,3.11802089]
[1739136591951,3.812,2622.5,2622.3,1.1497]
[1739136592152,3.812,2622.4,2622.3,0.5732]
[1739136598647,3.8073,2622.8,2622.3,0.5732]
[1739136598850,3.812,2622.8,2622.7,6.32582089]
[1739136599051,0.5866,2623.3,2622.7,6.32582089]
[1739136599249,3.812,2623.0,2622.8,0.5987]
[1739136599449,3.812,2623.0,2622.9,0.5783]
[1739136599843,0.00571941,2623.2,2622.9,0.5783]
[1739136600044,3.812,2623.1,2623.0,3.11802089]
[1739136600246,3.812,2623.0,2622.9,0.5783]
[1739136600446,3.812,2623.0,2622.7,3.11802089]
[1739136600642,3.812,2622.8,2622.7,3.11802089]
[1739136600846,3.812,2622.8,2622.5,0.5783]
[1739136601047,3.812,2622.6,2622.4,3.11802089]
[1739136601257,3.812,2622.5,2622.4,3.11802089]
[1739136602953,0.5734,2622.9,2622.4,7.08835089]
[1739136603256,3.2078,2623.8,2622.8,3.11802089]
[1739136603557,3.2254,2623.3,2623.1,3.11802089]
[1739136603746,3.2254,2623.3,2623.2,0.5572]
[1739136603943,0.5912,2624.0,2623.2,0.5572]
[1739136604250,0.5814,2624.5,2623.9,6.32582089]
[1739136604450,0.5814,2624.5,2624.3,3.11802089]
[1739136604652,0.58711941,2624.5,2624.3,3.11802089]
[1739136604844,3.2254,2624.4,2624.3,3.11802089]
[1739136606151,0.00571941,2624.5,2624.3,3.11802089]
[1739136607653,0.00571941,2624.5,2624.4,3.11802089]
[1739136607853,0.00571941,2624.5,2624.3,3.11802089]
[1739136608260,0.00571941,2624.5,2624.4,3.11802089]
[1739136608558,0.00571941,2624.5,2624.3,3.11802089]
[1739136608951,3.2254,2624.4,2624.3,3.11802089]
[1739136609847,3.2254,2624.4,2624.0,3.70732089]
[1739136610055,3.21968059,2624.0,2623.1,6.32582089]
[1739136610349,3.21968059,2623.2,2623.1,3.11802089]
[1739136611658,3.21968059,2623.2,2623.1,4.09161031]
[1739136612157,3.2078,2623.6,2623.1,4.09161031]
[1739136612354,3.21968059,2623.4,2623.1,4.09161031]
[1739136612559,3.21968059,2623.3,2623.1,4.09161031]
[1739136613055,3.2078,2624.0,2623.1,4.09161031]
[1739136613249,3.21968059,2623.7,2623.6,7.29941031]
[1739136613454,3.21968059,2623.7,2623.6,4.09161031]
[1739136615359,3.21968059,2623.7,2623.6,7.29941031]
[1739136616761,3.21968059,2623.7,2623.6,4.09161031]
[1739136617164,3.21968059,2623.7,2623.3,7.29941031]
[1739136617462,3.21968059,2623.4,2623.3,7.29941031]
[1739136617657,3.21968059,2623.4,2623.3,4.09161031]
[1739136617864,3.21968059,2623.4,2623.1,0.5854]
[1739136618160,3.21968059,2623.2,2623.0,4.09161031]
[1739136618457,3.21968059,2623.1,2622.9,0.00571941]
[1739136618663,3.2078,2623.4,2622.9,0.00571941]
[1739136618664,3.21968059,2623.0,2622.9,0.00571941]
[1739136622561,3.80948059,2623.0,2622.9,0.00571941]
[1739136624858,3.80948059,2623.0,2622.4,3.2078]
[1739136624859,7.01728059,2623.0,2622.4,7.29941031]
[1739136625171,3.21968059,2622.5,2622.4,7.29941031]
[1739136627364,3.21968059,2622.5,2622.4,3.2078]
[1739136627561,3.21968059,2622.5,2622.2,0.00571941]
[1739136627868,3.21968059,2622.3,2622.2,0.00571941]
[1739136630166,3.21968059,2622.3,2622.1,3.2078]
[1739136630365,0.0948,2622.5,2622.1,3.2078]
[1739136630366,3.80828059,2622.2,2622.1,3.2078]
[1739136630961,0.5931,2622.6,2622.1,7.29941031]
[1739136631162,3.21968059,2622.6,2622.4,4.09161031]
[1739136631368,2.62086119,2622.6,2622.4,4.09161031]
[1739136631671,2.62086119,2622.6,2622.5,3.2078]
[1739136633563,2.62086119,2622.6,2622.2,0.5749]
[1739136633764,2.62086119,2622.3,2622.1,4.09161031]
[1739136633964,2.62086119,2622.2,2622.1,4.09161031]
[1739136634870,2.62086119,2622.2,2622.0,3.2078]
[1739136635063,2.62086119,2622.1,2622.0,3.2078]
[1739136635671,2.62086119,2622.1,2621.5,4.68461031]
[1739136635865,3.2078,2622.3,2621.5,4.09161031]
[1739136635866,2.62086119,2621.6,2621.5,4.09161031]
[1739136637367,2.62086119,2621.6,2621.2,4.09161031]
[1739136637574,1.5256,2621.9,2621.2,4.09161031]
[1739136637776,2.62086119,2621.3,2620.9,4.09161031]
[1739136637969,2.62086119,2621.0,2620.9,4.09161031]
[1739136638175,2.62086119,2621.2,2620.9,4.09161031]
[1739136638472,2.62086119,2621.1,2621.0,1.1175]
[1739136639574,0.00571941,2621.2,2621.0,1.1175]
[1739136639770,0.00571941,2621.2,2621.1,3.2078]
[1739136641786,2.6265806,2621.2,2621.0,1.1175]
[1739136641982,2.62086119,2621.1,2621.0,1.1175]
[1739136644590,2.62086119,2621.1,2620.9,4.09161031]
[1739136644783,2.62086119,2621.0,2620.9,4.09161031]
[1739136646488,2.62086119,2621.0,2620.7,19.964]
[1739136646684,2.62086119,2620.8,2620.7,19.964]
[1739136647180,2.62086119,2620.8,2620.4,0.5819]
[1739136647382,2.62086119,2620.5,2620.4,0.5819]
[1739136647589,2.62086119,2620.5,2620.4,3.70520926]
[1739136649189,5.039,2621.1,2620.4,6.91300926]
[1739136649190,1.8312,2621.1,2620.4,6.91300926]
[1739136649395,1.8312,2621.1,2620.9,3.12330926]
[1739136649590,2.62086119,2620.7,2620.6,4.09959756]
[1739136651889,2.62086119,2620.7,2620.4,0.5819]
[1739136652095,2.62086119,2620.5,2620.4,0.5819]
[1739136653387,2.85626119,2620.5,2620.4,0.5819]
[1739136654194,3.81026119,2620.5,2620.4,0.5819]
[1739136654990,5.33666119,2620.5,2620.4,0.5819]
[1739136655192,5.33666119,2620.5,2620.3,4.09959756]
[1739136655497,2.62086119,2620.4,2620.3,4.09959756]
[1739136657197,2.62086119,2620.4,2620.0,4.09959756]
[1739136657399,2.62086119,2620.1,2620.0,4.09959756]
[1739136658898,2.62086119,2620.1,2619.7,4.09959756]
[1739136659095,0.3053,2620.1,2619.8,0.572]
[1739136659496,2.62086119,2619.9,2619.8,0.572]
[1739136660701,2.62086119,2619.9,2619.8,3.7798]
[1739136660898,0.3053,2620.1,2619.8,3.7798]
[1739136661091,0.3053,2620.1,2620.0,4.09959756]
[1739136661298,0.7800612,2619.9,2619.8,0.572]
[1739136661600,0.7800612,2619.9,2619.7,4.09959756]
[1739136661791,0.7800612,2619.8,2619.7,4.09959756]
[1739136663300,2.3068612,2619.8,2619.7,4.09959756]
[1739136664600,0.16270002,2620.1,2619.7,4.09959756]
[1739136664805,1.1894,2620.5,2620.0,7.30739756]
[1739136664998,1.1894,2620.5,2620.4,7.30739756]
[1739136665398,1.9694612,2620.5,2620.4,7.30739756]
[1739136665900,1.9694612,2620.5,2620.2,0.5639]
[1739136666105,0.7800612,2620.3,2620.2,0.5639]
[1739136666300,0.7800612,2620.4,2620.2,3.7717]
[1739136667101,0.7800612,2620.3,2620.2,3.7717]
[1739136667297,0.7800612,2620.3,2619.8,7.30739756]
[1739136667506,0.7800612,2620.0,2619.8,7.87999756]
[1739136668513,0.7800612,2619.9,2619.8,3.2078]
[1739136668808,0.7800612,2619.9,2619.5,25.26699756]
[1739136669005,0.5631,2620.1,2619.4,3.21547202]
[1739136669006,0.7800612,2619.6,2619.4,0.00767202]
[1739136669209,5.1599612,2619.5,2619.4,0.00767202]
[1739136670014,1.3890612,2619.5,2619.4,3.13444882]
[1739136670308,3.21351941,2619.8,2619.4,0.00767202]
[1739136671809,3.2078,2619.5,2619.4,0.00767202]
[1739136675016,5.7313,2619.5,2619.4,0.00767202]
[1739136676819,5.9667,2619.5,2619.4,0.00767202]
[1739136679216,13.6947,2619.5,2618.5,3.20805427]
[1739136679413,13.6947,2619.5,2618.5,0.08127747]
[1739136679414,3.1267768,2618.6,2618.5,0.08127747]
[1739136679809,3.7584768,2618.6,2617.8,1.2839]
[1739136680018,6.3345768,2618.3,2617.8,0.6318]
[1739136680410,3.2078,2618.0,2617.4,3.2078]
[1739136680610,8.0745768,2618.3,2617.4,3.2078]
[1739136681216,6.3345768,2618.0,2617.4,3.2078]
[1739136681524,0.6372,2617.9,2617.4,3.2078]
[1739136681824,0.6372,2617.9,2617.2,0.6378]
[1739136682216,3.2078,2618.0,2617.4,4.11057793]
[1739136682414,3.2078,2618.0,2617.4,7.31837793]
[1739136682813,3.2078,2618.0,2617.4,4.11057793]
[1739136683217,3.2078,2618.0,2617.2,0.6378]
[1739136683421,4.7356,2618.0,2617.4,7.31837793]
[1739136683813,4.7356,2618.0,2617.4,4.11057793]
[1739136684418,5.6905,2618.0,2617.4,4.11057793]
[1739136684821,5.6905,2618.0,2617.4,7.31837793]
[1739136685124,5.6905,2618.0,2617.4,4.11057793]
[1739136685322,5.6905,2618.0,2617.4,7.31837793]
[1739136686125,2.4827,2618.0,2617.4,7.31837793]
[1739136687419,0.41723479,2618.0,2617.7,7.31837793]
[1739136687724,0.41723479,2618.0,2617.8,1.2541]
[1739136688224,0.72273479,2618.0,2617.8,4.4619]
[1739136688426,0.72273479,2618.0,2617.8,0.6395]
[1739136689418,0.72273479,2618.0,2617.5,3.2078]
[1739136689726,1.5277,2618.3,2617.8,3.2078]
[1739136689926,1.5277,2618.3,2618.1,4.11057793]
[1739136690134,1.5277,2618.3,2618.2,3.83]
[1739136690425,0.00571941,2618.5,2618.2,0.6222]
[1739136690633,0.00571941,2618.5,2618.2,4.4233]
[1739136691130,1.22341941,2618.5,2618.2,4.4233]
[1739136691328,1.22341941,2618.5,2618.4,4.11057793]
[1739136692634,1.22341941,2618.5,2618.2,4.4233]
[1739136693233,1.22341941,2618.5,2618.2,3.83]
[1739136693436,1.22341941,2618.5,2618.2,3.2078]
[1739136693737,3.2078,2618.4,2617.5,7.31837793]
[1739136693937,3.8181,2618.4,2617.5,7.31837793]
[1739136695333,3.2078,2618.0,2617.3,1.2293]
[1739136695539,3.2078,2617.7,2617.3,0.6322]
[1739136695740,1.758,2617.6,2617.2,3.2078]
[1739136696033,4.11057793,2617.3,2616.2,3.2078]
[1739136696234,3.2078,2616.6,2616.0,3.2078]
[1739136696535,0.5903,2616.5,2615.7,4.74517793]
[1739136696729,4.71968741,2616.5,2615.7,4.74517793]
[1739136696936,4.12938741,2616.5,2616.0,4.11057793]
[1739136697240,1.775,2616.8,2616.1,3.2078]
[1739136697538,1.775,2616.8,2615.7,4.74517793]
[1739136697539,3.2078,2616.5,2615.7,4.74517793]
[1739136697837,3.2078,2616.5,2615.7,0.6346]
[1739136698034,3.2078,2616.5,2615.1,3.2078]
[1739136698035,7.31837793,2615.8,2615.1,3.2078]
[1739136698234,3.2078,2615.5,2615.1,3.2078]
[1739136698642,3.2078,2615.5,2614.7,3.2078]
[1739136698831,3.2078,2615.5,2614.5,13.01999421]
[1739136698832,3.2078,2615.1,2614.5,8.90941628]
[1739136699032,3.2078,2614.8,2614.5,8.90941628]
[1739136700740,4.35404459,2614.7,2614.5,8.90941628]
[1739136700935,3.2078,2614.8,2614.5,8.90941628]
[1739136701138,9.2078,2614.8,2613.9,3.2078]
[1739136701446,4.11057793,2614.9,2613.9,3.2078]
[1739136701447,3.2078,2614.5,2613.9,3.2078]
[1739136701740,5.0388,2614.5,2613.6,3.2078]
[1739136701936,4.16072852,2614.4,2613.6,3.2078]
[1739136702137,4.16072852,2614.4,2613.6,7.31837793]
[1739136702345,3.2078,2615.3,2614.2,7.31837793]
[1739136702535,3.2078,2615.3,2614.7,3.2078]
[1739136702741,0.00573044,2615.0,2614.7,3.2078]
[1739136703044,0.00573044,2615.0,2614.8,4.11057793]
[1739136703542,0.00573044,2615.0,2614.9,0.6246]
[1739136703733,1.5294,2615.3,2614.9,0.6246]
[1739136703933,1.5294,2615.3,2615.2,7.31837793]
[1739136704238,4.11057793,2616.7,2615.2,7.31837793]
[1739136704239,3.2078,2616.6,2615.3,0.76458]
[1739136704444,3.2078,2616.6,2615.8,4.11057793]
[1739136704645,3.2078,2616.3,2615.5,4.11057793]
[1739136704944,3.2078,2616.0,2615.6,0.00573044]
[1739136705138,3.2078,2616.0,2615.3,3.2078]
[1739136705346,3.2078,2615.4,2614.6,4.11057793]
[1739136707237,3.2078,2615.1,2614.6,4.11057793]
[1739136707841,3.2078,2615.1,2614.1,5.0478]
[1739136707842,1.84,2615.5,2614.9,4.11057793]
[1739136708044,3.2078,2615.6,2615.1,3.2078]
[1739136708240,0.00573044,2615.5,2614.9,4.11057793]
[1739136709444,0.00573044,2615.5,2615.2,4.11057793]
[1739136712253,3.2078,2615.3,2614.6,4.11057793]
[1739136713644,3.2078,2615.3,2614.9,4.11057793]
[1739136713850,3.4434,2616.2,2615.2,4.11057793]
[1739136714052,0.2356,2616.2,2615.7,4.11057793]
[1739136715040,0.00573044,2616.1,2615.7,4.11057793]
[1739136715247,0.00573044,2616.1,2615.9,3.2078]
[1739136715447,0.3058,2616.0,2615.7,4.11057793]
[1739136715750,0.3058,2616.0,2615.6,3.21353044]
[1739136716248,1.2163,2616.0,2615.9,3.2078]
[1739136719049,1.2163,2616.0,2615.9,3.803]
[1739136719646,1.2163,2616.0,2615.9,4.56743]
[1739136719843,0.00573044,2616.1,2615.9,4.56743]
[1739136720244,0.00573044,2616.1,2615.9,3.803]
[1739136720444,0.00573044,2616.1,2616.0,4.86571911]
[1739136721045,0.00573044,2616.1,2616.0,5.63012911]
[1739136721245,0.00573044,2616.1,2616.0,4.86571911]
[1739136721452,0.00573044,2616.1,2615.9,3.803]
[1739136721845,0.5413,2616.2,2616.0,0.76441]
[1739136722045,1.5288,2616.3,2616.0,5.02457236]
[1739136722242,1.5288,2616.3,2616.2,7.617024]
[1739136722449,3.2078,2617.0,2616.2,3.2078]
[1739136722849,3.2078,2617.0,2616.5,3.2078]
[1739136723050,0.00573044,2616.9,2616.5,3.2078]
[1739136723348,0.00573044,2616.9,2616.6,4.409224]
[1739136723750,1.53423044,2616.9,2616.8,3.2078]
[1739136724845,0.00573044,2616.9,2616.8,3.2078]
[1739136725243,0.00573044,2616.9,2616.8,3.97197]
[1739136725445,1.2474,2618.3,2616.9,0.76414]
[1739136725754,1.2474,2618.3,2617.5,3.2078]
[1739136725955,2.7751,2618.3,2617.5,3.2078]
[1739136726455,3.2078,2618.1,2617.3,4.409224]
[1739136726647,3.2078,2617.8,2617.6,0.00573044]
[1739136728153,0.6337,2617.7,2617.6,0.00573044]
[1739136728946,6.6337,2617.7,2617.6,0.00573044]
[1739136729148,10.91233045,2617.7,2616.6,3.2078]
[1739136729347,3.2078,2617.2,2616.6,3.2078]
[1739136730454,3.2078,2617.2,2616.6,3.21353044]
[1739136732256,3.8344,2617.2,2616.6,3.21353044]
[1739136733860,3.8344,2617.2,2616.6,0.00573044]
[1739136735257,5.3627,2617.2,2616.6,0.00573044]
[1739136735645,1.5283,2617.2,2616.8,4.11163594]
[1739136735850,1.5283,2617.2,2617.1,7.31943594]
[1739136736056,1.5283,2617.2,2617.1,13.31943594]
[1739136736255,4.0512,2617.2,2617.1,13.31943594]
[1739136736449,4.0512,2617.2,2616.8,4.11163594]
[1739136736854,0.6534,2617.1,2616.8,4.11163594]
[1739136738356,4.0512,2617.2,2616.8,4.11163594]
[1739136738953,4.0512,2617.2,2616.9,0.00399656]
[1739136739350,4.0512,2617.2,2617.1,4.11163594]
[1739136739558,7.259,2617.2,2616.9,0.00399656]
[1739136740463,0.6122,2617.1,2616.9,0.00399656]
[1739136740962,0.6559,2617.0,2616.9,0.00399656]
[1739136741364,0.6559,2617.0,2616.6,0.00573044]
[1739136741365,6.6559,2617.0,2616.6,0.00573044]
[1739136741566,3.2078,2616.8,2616.6,0.00573044]
[1739136741964,0.6559,2617.0,2616.6,0.00573044]
[1739136742161,3.2078,2616.9,2616.6,0.00573044]
[1739136742361,7.50503194,2616.9,2615.9,4.11163594]
[1739136742564,3.2078,2616.6,2615.9,4.11163594]
[1739136743666,0.00573044,2616.5,2616.0,0.00573044]
[1739136744161,0.00573044,2616.5,2616.2,4.11163594]
[1739136744556,0.00573044,2616.5,2616.0,0.00573044]
[1739136744759,3.21353044,2616.5,2616.0,0.00573044]
[1739136745061,0.00573044,2616.5,2616.0,0.00573044]
[1739136745464,1.53443044,2616.5,2616.0,0.00573044]
[1739136745655,1.53443044,2616.5,2616.2,7.31943594]
[1739136745858,1.53443044,2616.5,2616.2,4.11163594]
[1739136746060,1.53443044,2616.5,2616.2,7.31943594]
[1739136748365,4.465,2619.6,2617.5,3.2078]
[1739136748661,4.30116422,2619.8,2619.3,4.11163594]
[1739136748863,4.30116422,2619.8,2619.7,4.11163594]
[1739136749166,4.30116422,2620.3,2619.7,7.31943594]
[1739136749365,3.2078,2620.4,2620.1,4.11163594]
[1739136749665,0.54973044,2620.3,2620.1,4.11163594]
[1739136750066,4.26044657,2620.2,2619.8,4.11163594]
[1739136750268,3.2078,2620.1,2619.8,4.11163594]
[1739136750764,4.1183862,2620.0,2619.8,4.11163594]
[1739136751162,10.1183862,2620.0,2619.7,0.00573044]
[1739136751366,3.2078,2619.8,2618.7,4.11163594]
[1739136751561,3.2078,2619.8,2618.6,3.2078]
[1739136751562,3.2078,2619.3,2618.8,4.67326653]
[1739136751768,1.96,2619.6,2619.2,4.67326653]
[1739136751969,1.96,2619.6,2619.3,3.2078]
[1739136752163,4.06575278,2619.8,2619.3,3.2078]
[1739136752370,0.6299,2619.9,2619.3,3.2078]
[1739136752571,0.00573044,2619.8,2619.3,3.21353044]
[1739136753077,0.00573044,2619.8,2619.3,0.00573044]
[1739136754971,3.2078,2619.6,2618.8,4.67326653]
[1739136755175,1.956,2619.5,2618.8,4.67326653]
[1739136755374,6.17811318,2619.5,2618.8,4.67326653]
[1739136755575,1.956,2619.5,2618.8,7.88106653]
[1739136755782,5.1638,2619.5,2618.8,7.88106653]
[1739136755979,1.956,2619.5,2618.8,8.64465653]
[1739136756181,1.956,2619.5,2618.8,7.88106653]
[1739136757077,4.18525065,2619.4,2618.8,7.88106653]
[1739136758479,3.2078,2619.1,2618.4,7.88106653]
[1739136758683,0.6386,2619.0,2618.4,7.88106653]
[1739136758879,5.03071175,2619.0,2618.4,7.88106653]
[1739136760081,5.03071175,2619.0,2618.4,3.2078]
[1739136760287,3.2078,2618.7,2618.0,4.67326653]
[1739136760883,3.752,2618.7,2618.0,4.67326653]
[1739136761688,3.752,2618.7,2618.3,3.2078]
[1739136762187,3.752,2618.7,2618.0,7.88106653]
[1739136762880,4.0414531,2618.6,2618.0,3.2078]
[1739136764483,3.2078,2618.4,2617.7,3.2078]
[1739136764889,6.65338572,2618.3,2617.7,3.2078]
[1739136765783,3.2078,2618.1,2617.3,3.2078]
[1739136765977,3.2078,2617.5,2616.6,3.866]
[1739136766176,3.2078,2616.9,2616.4,4.67326653]
[1739136766578,4.75042692,2617.4,2616.4,4.67326653]
[1739136766783,0.00573044,2616.9,2616.4,4.67326653]
[1739136767388,0.00573044,2616.9,2616.6,3.2078]
[1739136768991,3.2078,2616.8,2616.0,3.2078]
[1739136769195,0.6084,2616.7,2616.0,3.2078]
[1739136769395,0.6084,2616.7,2615.6,7.88106653]
[1739136769396,3.2078,2616.4,2615.6,7.88106653]
[1739136771092,3.752,2616.4,2615.6,7.88106653]
[1739136771795,1.932,2616.3,2615.6,7.88106653]
[1739136772291,1.932,2616.3,2615.6,3.2078]
[1739136772483,3.2078,2616.0,2615.6,3.2078]
[1739136773192,4.22236993,2615.9,2615.6,3.2078]
[1739136773389,3.2078,2615.7,2615.0,3.2078]
[1739136773590,5.1508,2615.7,2615.0,3.2078]
[1739136774891,3.2078,2615.1,2614.2,3.2078]
[1739136775092,3.2078,2615.1,2614.0,4.67326653]
[1739136775093,1.945,2615.0,2614.0,4.67326653]
[1739136775295,6.05851301,2615.0,2614.1,3.2078]
[1739136775490,0.00573044,2614.8,2614.1,3.2078]
[1739136775991,0.00573044,2614.8,2614.0,4.67326653]
[1739136775992,0.00573044,2614.8,2614.7,3.2078]
[1739136776896,0.00573044,2614.8,2614.4,7.88106653]
[1739136777300,0.00573044,2614.8,2614.7,3.2078]
[1739136777793,0.00573044,2614.8,2614.4,7.88106653]
[1739136778197,0.00573044,2614.8,2614.4,3.2078]
[1739136780001,0.00573044,2614.8,2614.4,7.88106653]
[1739136780402,0.55003044,2614.8,2614.4,7.88106653]
[1739136780992,0.55003044,2614.8,2614.7,3.2078]
[1739136781194,1.946,2615.5,2614.7,3.2078]
[1739136781497,0.6062,2615.8,2614.4,4.67326653]
[1739136781498,1.945,2615.7,2615.0,3.2078]
[1739136781702,1.945,2615.7,2615.3,3.2078]
[1739136782104,5.1538,2616.4,2615.6,3.2078]
[1739136782299,0.00573044,2615.8,2615.6,3.2078]
[1739136782595,0.00573044,2615.8,2615.7,4.67326653]
[1739136783708,3.2078,2616.9,2615.7,11.28486653]
[1739136784002,3.2078,2616.9,2616.2,3.2078]
[1739136784902,0.00573044,2616.8,2616.2,3.2078]
[1739136785094,0.00573044,2616.8,2616.5,7.88106653]
[1739136785904,0.00573044,2616.8,2616.5,3.2078]
[1739136786108,0.00573044,2616.8,2616.1,4.67326653]
[1739136786294,0.00573044,2616.8,2615.8,3.2078]
[1739136786604,7.59838962,2616.7,2615.8,3.2078]
[1739136788099,0.5947,2616.6,2615.8,3.2078]
[1739136788501,4.3738386,2616.5,2615.8,3.2078]
[1739136788801,4.3738386,2616.5,2615.7,5.28486653]
[1739136789105,3.2078,2616.4,2615.7,5.28486653]
[1739136790805,3.2078,2616.4,2615.5,3.2078]
[1739136792603,1.935,2616.3,2615.5,3.2078]
[1739136792804,3.2078,2616.1,2615.5,3.2078]
[1739136793195,3.2078,2615.8,2615.2,0.00573044]
[1739136793396,0.6064,2615.7,2615.2,0.00573044]
[1739136793602,3.2078,2615.5,2615.2,0.00573044]
[1739136794604,1.935,2615.6,2615.2,0.00573044]
[1739136795109,3.2078,2616.2,2616.1,0.76438]
[1739136795307,3.21353044,2616.8,2615.8,3.2078]
[1739136795508,4.41774896,2616.6,2615.8,3.2078]
[1739136795700,3.2078,2616.5,2615.8,3.2078]
[1739136795906,3.2078,2616.2,2615.7,0.6421]
[1739136796202,3.2078,2615.9,2615.2,0.00573044]
[1739136796404,1.951,2615.8,2615.2,0.00573044]
[1739136796608,2.70203332,2615.8,2615.2,0.00573044]
[1739136798710,3.2078,2615.6,2615.2,0.00573044]
[1739136799013,2.70203332,2615.8,2615.2,0.00573044]
[1739136799014,3.2078,2615.3,2615.2,0.00573044]
[1739136803908,13.18515623,2615.3,2615.2,0.00573044]
[1739136804209,7.18515623,2615.3,2615.2,0.00573044]
[1739136805714,3.2078,2615.3,2615.2,0.00573044]
[1739136806815,9.2078,2615.3,2615.2,0.00573044]
[1739136807013,13.37618901,2615.3,2614.3,0.6193]
[1739136807213,3.2078,2614.7,2614.2,7.32496351]
[1739136807407,3.2078,2614.7,2614.2,4.11716351]
[1739136807915,1.927,2614.8,2614.2,4.11716351]
[1739136808114,0.00573044,2614.7,2614.2,4.12289395]
[1739136808510,3.21353044,2614.7,2614.2,0.00573044]
[1739136810020,0.6347,2614.6,2614.2,0.00573044]
[1739136814117,4.01763807,2614.5,2614.2,0.00573044]
[1739136820314,3.21353044,2614.7,2614.2,4.12289395]
[1739136820518,3.21353044,2614.7,2614.3,0.6164]
[1739136820724,3.21353044,2614.7,2614.2,0.00573044]
[1739136821020,3.2078,2614.4,2614.2,0.00573044]
[1739136821217,1.905,2614.3,2614.2,0.00573044]
[1739136821417,2.5483,2614.3,2614.2,0.00573044]
[1739136821916,6.68815293,2614.3,2613.3,7.98656351]
[1739136822122,6.68815293,2614.3,2613.6,4.11716351]
[1739136822123,3.2078,2614.0,2613.6,4.11716351]
[1739136822322,3.2078,2614.0,2613.4,0.6164]
[1739136822521,3.2078,2613.6,2613.3,0.6616]
[1739136822721,4.13985293,2613.9,2613.3,4.77876351]
[1739136822722,6.05085293,2613.9,2613.3,4.77876351]
[1739136822918,1.911,2613.9,2613.3,4.77876351]
[1739136823126,3.2078,2613.6,2613.1,0.15541224]
[1739136823420,1.911,2613.9,2612.1,4.11716351]
[1739136823421,4.11716351,2613.2,2612.1,4.11716351]
[1739136823627,3.2078,2612.3,2612.0,0.00283648]
[1739136824221,0.61545639,2612.2,2612.0,0.00283648]
[1739136824518,0.61545639,2612.2,2611.0,8.90941628]
[1739136824721,4.11716351,2611.5,2611.0,8.90941628]
[1739136825029,3.2078,2611.1,2611.0,8.90941628]
[1739136825217,5.2088,2611.1,2611.0,5.84821628]
[1739136825424,15.443249,2611.1,2610.9,6.7712522]
[1739136825617,15.443249,2611.1,2610.9,4.085104]
[1739136825828,13.442249,2611.1,2610.7,9.52970121]